fUST/lending_fUST_20250318
["ID","MTS","AMOUNT","RATE_DAILY","PERIOD"]
[356332058,1742286678647,-2562.21,0.00010136,2]
[356332059,1742286678656,-3833.09,0.00010136,2]
[356332060,1742286678666,-500.0,0.00010136,2]
[356332061,1742286678676,-1785.76,0.00010136,2]
[356332062,1742286678686,-1141.65,0.00010136,2]
[356332063,1742286678696,-500.0,0.00010136,2]
[356332064,1742286678705,-6740.53,0.00010136,2]
[356332065,1742286678716,-1590.13,0.00010136,2]
[356332066,1742286678726,-509.9904596,0.00010136,2]
[356332067,1742286678735,-700.85,0.00010136,2]
[356332068,1742286678745,-500.0,0.00010136,2]
[356332069,1742286678756,-500.0,0.00010136,2]
[356332070,1742286678861,-9675.79,0.00010136,2]
[356332071,1742286678881,-515.3285995,0.00010136,2]
[356332072,1742286678893,-500.0,0.00010136,2]
[356332073,1742286678904,-884.32,0.00010136,2]
[356332074,1742286678914,-2187.92,0.00010136,2]
[356332075,1742286678924,-3166.23,0.00010136,2]
[356332076,1742286678935,-500.0,0.00010136,2]
[356332077,1742286678945,-500.0,0.00010136,2]
[356332078,1742286678955,-846.0,0.00010136,2]
[356332079,1742286678965,-500.0,0.00010136,2]
[356332080,1742286678976,-500.0,0.00010136,2]
[356332081,1742286678986,-500.0,0.00010136,2]
[356332082,1742286678996,-500.0,0.00010136,2]
[356332083,1742286679006,-847.69,0.00010136,2]
[356332084,1742286679017,-1476.4,0.00010136,2]
[356332085,1742286679031,-1068.47,0.00010136,2]
[356332086,1742286679041,-500.0,0.00010136,2]
[356332087,1742286679051,-500.0,0.00010136,2]
[356332088,1742286679061,-2552.77,0.00010136,2]
[356332089,1742286679071,-8078.39,0.00010136,2]
[356332090,1742286679082,-574.26,0.00010136,2]
[356332091,1742286679092,-3125.56,0.00010136,2]
[356332092,1742286679103,-500.0,0.00010136,2]
[356332093,1742286679114,-525.74727325,0.00010136,2]
[356332094,1742286679126,-500.0,0.00010136,2]
[356332095,1742286679137,-506.70258591,0.00010136,2]
[356332096,1742286679147,-500.0,0.00010136,2]
[356332097,1742286679159,-500.0,0.00010136,2]
[356332098,1742286679169,-2010.1,0.00010136,2]
[356332099,1742286679179,-890.39,0.00010136,2]
[356332100,1742286679189,-500.0,0.00010136,2]
[356332101,1742286679199,-500.0,0.00010136,2]
[356332102,1742286679210,-500.0,0.00010136,2]
[356332103,1742286679221,-602.83,0.00010136,2]
[356332104,1742286679232,-233.72926112,0.00010136,2]
[356332105,1742286679242,-508.32799397,0.00010136,2]
[356332106,1742286679252,-500.0,0.00010136,2]
[356332107,1742286679262,-540.48558555,0.00010136,2]
[356332108,1742286679272,-500.0,0.00010136,2]
[356332109,1742286679284,-500.0,0.00010136,2]
[356332110,1742286679295,-500.0,0.00010136,2]
[356332111,1742286679305,-1007.4,0.00010136,2]
[356332112,1742286679316,-500.0,0.00010136,2]
[356332113,1742286679326,-500.0,0.00010136,2]
[356332114,1742286679337,-500.0,0.00010136,2]
[356332115,1742286679347,-4662.69,0.00010136,2]
[356332116,1742286679358,-500.0,0.00010136,2]
[356332117,1742286679369,-500.0,0.00010136,2]
[356332118,1742286679380,-503.58053148,0.00010136,2]
[356332119,1742286679390,-1611.39,0.00010136,2]
[356332120,1742286679401,-500.0,0.00010136,2]
[356332121,1742286679411,-642.65,0.00010136,2]
[356332122,1742286679422,-500.0,0.00010136,2]
[356332123,1742286679432,-628.53,0.00010136,2]
[356332124,1742286679442,-500.0,0.00010136,2]
[356332125,1742286679453,-1500.8,0.00010136,2]
[356332126,1742286679463,-500.0,0.00010136,2]
[356332127,1742286679473,-778.05,0.00010136,2]
[356332128,1742286679484,-500.0,0.00010136,2]
[356332129,1742286679494,-663.29,0.00010136,2]
[356332130,1742286679504,-690.44,0.00010136,2]
[356332131,1742286679515,-500.0,0.00010136,2]
[356332132,1742286679526,-500.0,0.00010136,2]
[356332133,1742286679537,-835.11200367,0.00010193,2]
[356332134,1742286679548,-465.00267133,0.00010223,2]
[356332135,1742286679558,-500.0,0.00010279,2]
[356332136,1742286679568,-481.81473713,0.0001041,2]
[356332137,1742286679578,-500.0,0.0001041,2]
[356332138,1742286679587,-502.89,0.0001041,2]
[356332139,1742286679603,-500.0,0.0001041,2]
[356332140,1742286679622,-500.0,0.0001041,2]
[356332141,1742286679642,-500.0,0.0001041,2]
[356332142,1742286679662,-500.0,0.0001041,2]
[356332143,1742286679683,-500.0,0.0001041,2]
[356332144,1742286679700,-500.0,0.0001041,2]
[356332145,1742286679718,-500.0,0.0001041,2]
[356332146,1742286679733,-500.0,0.0001041,2]
[356332147,1742286679751,-500.0,0.0001041,2]
[356332148,1742286679770,-500.0,0.0001041,2]
[356332149,1742286679789,-500.0,0.0001041,2]
[356332150,1742286679802,-500.0,0.0001041,2]
[356332151,1742286679823,-500.0,0.0001041,2]
[356332152,1742286679839,-500.0,0.0001041,2]
[356332153,1742286679857,-500.0,0.0001041,2]
[356332154,1742286679872,-500.0,0.0001041,2]
[356332155,1742286679887,-500.0,0.0001041,2]
[356332156,1742286679903,-500.0,0.0001041,2]
[356332157,1742286679918,-500.0,0.0001041,2]
[356332158,1742286679934,-500.0,0.0001041,2]
[356332159,1742286679949,-500.0,0.0001041,2]
[356332160,1742286679966,-500.0,0.0001041,2]
[356332161,1742286679981,-504.17558794,0.0001041,2]
[356332162,1742286679996,-500.0,0.0001041,2]
[356332163,1742286680013,-500.0,0.0001041,2]
[356332164,1742286680028,-505.96952518,0.0001041,2]
[356332165,1742286680043,-500.0,0.0001041,2]
[356332166,1742286680059,-500.0,0.0001041,2]
[356332167,1742286680074,-622.72,0.0001041,2]
[356332168,1742286680090,-917.74,0.0001041,2]
[356332169,1742286680105,-500.0,0.0001041,2]
[356332170,1742286680121,-500.0,0.0001041,2]
[356332171,1742286680136,-500.0,0.0001041,2]
[356332172,1742286680152,-266.50818347,0.0001041,2]
[356332173,1742286680167,-500.0,0.0001041,2]
[356332174,1742286680182,-500.0,0.0001041,2]
[356332175,1742286680198,-500.0,0.0001041,2]
[356332176,1742286680213,-299.08021348,0.0001041,2]
[356332177,1742286680227,-500.0,0.0001041,2]
[356332178,1742286680242,-1028.0,0.0001041,2]
[356332179,1742286680258,-500.0,0.0001041,2]
[356332180,1742286680274,-500.0,0.0001041,2]
[356332181,1742286680287,-500.0,0.0001041,2]
[356332182,1742286680303,-500.0,0.0001041,2]
[356332183,1742286680318,-1921.6,0.0001041,2]
[356332184,1742286680332,-500.0,0.0001041,2]
[356332185,1742286680347,-653.08,0.0001041,2]
[356332186,1742286680362,-500.0,0.0001041,2]
[356332187,1742286680378,-500.0,0.0001041,2]
[356332188,1742286680392,-2008.81,0.0001041,2]
[356332189,1742286680407,-500.0,0.0001041,2]
[356332190,1742286680422,-2178.78,0.0001041,2]
[356332191,1742286680439,-500.0,0.0001041,2]
[356332192,1742286680453,-2521.8,0.0001041,2]
[356332193,1742286680469,-500.0,0.0001041,2]
[356332194,1742286680483,-529.85,0.0001041,2]
[356332195,1742286680498,-500.0,0.0001041,2]
[356332196,1742286680512,-500.0,0.0001041,2]
[356332197,1742286680528,-500.0,0.0001041,2]
[356332198,1742286680543,-506.36518794,0.0001041,2]
[356332199,1742286680558,-500.0,0.0001041,2]
[356332200,1742286680572,-500.0,0.0001041,2]
[356332201,1742286680586,-500.0,0.0001041,2]
[356332202,1742286680601,-922.48,0.0001041,2]
[356332203,1742286680616,-680.36,0.0001041,2]
[356332204,1742286680630,-500.0,0.0001041,2]
[356332205,1742286680645,-682.75,0.0001041,2]
[356332206,1742286680660,-542.22184815,0.0001041,2]
[356332207,1742286680675,-610.02,0.0001041,2]
[356332208,1742286680690,-500.0,0.0001041,2]
[356332209,1742286680839,-674.0,0.0001041,2]
[356332210,1742286680852,-2151.35,0.0001041,2]
[356332211,1742286680862,-1105.69,0.0001041,2]
[356332212,1742286680872,-500.0,0.0001041,2]
[356332213,1742286680883,-367.3470876,0.0001041,2]
[356332214,1742286680894,-500.0,0.0001041,2]
[356332215,1742286680903,-1281.22,0.0001041,2]
[356332216,1742286680913,-500.0,0.0001041,2]
[356332217,1742286680923,-500.0,0.0001041,2]
[356332218,1742286680932,-500.0,0.0001041,2]
[356332219,1742286680941,-500.0,0.0001041,2]
[356332220,1742286680950,-778.89,0.0001041,2]
[356332221,1742286680959,-512.62490665,0.0001041,2]
[356332222,1742286680968,-907.84,0.0001041,2]
[356332223,1742286680978,-500.0,0.0001041,2]
[356332224,1742286680988,-14498.22,0.0001041,2]
[356332225,1742286680998,-763.96,0.0001041,2]
[356332226,1742286681008,-500.0,0.0001041,2]
[356332227,1742286681018,-2492.38,0.0001041,2]
[356332228,1742286681028,-500.0,0.0001041,2]
[356332229,1742286681038,-885.14,0.0001041,2]
[356332230,1742286681048,-626.66,0.0001041,2]
[356332231,1742286681058,-500.0,0.0001041,2]
[356332232,1742286681068,-1236.95,0.0001041,2]
[356332233,1742286681077,-500.0,0.0001041,2]
[356332234,1742286681088,-500.0,0.0001041,2]
[356332235,1742286681099,-1394.36,0.0001041,2]
[356332236,1742286681109,-667.87,0.0001041,2]
[356332237,1742286681121,-500.0,0.0001041,2]
[356332238,1742286681132,-500.0,0.0001041,2]
[356332239,1742286681143,-500.0,0.0001041,2]
[356332240,1742286681152,-500.0,0.0001041,2]
[356332241,1742286681163,-1394.43,0.0001041,2]
[356332242,1742286681173,-5190.96,0.0001041,2]
[356332243,1742286681183,-549.07869385,0.0001041,2]
[356332244,1742286681193,-500.0,0.0001041,2]
[356332245,1742286681204,-500.0,0.0001041,2]
[356332246,1742286681215,-1898.09,0.0001041,2]
[356332247,1742286681225,-500.0,0.0001041,2]
[356332248,1742286681235,-514.98765195,0.0001041,2]
[356332249,1742286681245,-505.21,0.0001041,2]
[356332250,1742286681256,-604.25,0.0001041,2]
[356332251,1742286681266,-500.0,0.0001041,2]
[356332252,1742286681276,-527.71779294,0.0001041,2]
[356332253,1742286681286,-687.55,0.0001041,2]
[356332254,1742286681296,-1875.08,0.0001041,2]
[356332255,1742286681306,-517.9,0.0001041,2]
[356332256,1742286681316,-6229.78,0.0001041,2]
[356332257,1742286681325,-500.0,0.0001041,2]
[356332258,1742286681335,-500.0,0.0001041,2]
[356332259,1742286681344,-500.0,0.0001041,2]
[356332260,1742286681354,-515.60674801,0.0001041,2]
[356332261,1742286681364,-10748.02,0.0001041,2]
[356332262,1742286681374,-4015.9,0.0001041,2]
[356332263,1742286681384,-7811.31,0.0001041,2]
[356332264,1742286681394,-1219.17,0.0001041,2]
[356332265,1742286681404,-500.0,0.0001041,2]
[356332266,1742286681414,-500.0,0.0001041,2]
[356332267,1742286681424,-5865.91,0.0001041,2]
[356332268,1742286681434,-501.87805065,0.0001041,2]
[356332269,1742286681445,-1567.61,0.0001041,2]
[356332270,1742286681455,-2101.67,0.0001041,2]
[356332271,1742286681465,-500.0,0.0001041,2]
[356332272,1742286681475,-1103.93,0.0001041,2]
[356332273,1742286681485,-500.0,0.0001041,2]
[356332274,1742286681495,-500.0,0.0001041,2]
[356332275,1742286681504,-500.0,0.0001041,2]
[356332276,1742286681514,-500.0,0.0001041,2]
[356332277,1742286681524,-1658.96,0.0001041,2]
[356332278,1742286681533,-500.0,0.0001041,2]
[356332279,1742286681543,-98083.34,0.0001041,2]
[356332280,1742286681552,-500.0,0.0001041,2]
[356332281,1742286681562,-640.71593513,0.0001041,2]
[356332282,1742286681572,-656.05,0.0001041,2]
[356332283,1742286681582,-500.0,0.0001041,2]
[356332284,1742286681591,-500.0,0.0001041,2]
[356332285,1742286681601,-2562.21,0.0001041,2]
[356332286,1742286681611,-3833.09,0.0001041,2]
[356332287,1742286681621,-500.0,0.0001041,2]
[356332288,1742286681631,-1785.76,0.0001041,2]
[356332289,1742286681640,-1141.65,0.0001041,2]
[356332290,1742286681650,-500.0,0.0001041,2]
[356332291,1742286681659,-6740.53,0.0001041,2]
[356332292,1742286681670,-1590.13,0.0001041,2]
[356332293,1742286681680,-700.85,0.0001041,2]
[356332294,1742286681689,-307.39122501,0.0001041,2]
[356332295,1742286681700,-514.49323316,0.0001041,2]
[356332296,1742286681709,-9675.79,0.0001041,2]
[356332297,1742286681719,-500.0,0.0001041,2]
[356332298,1742286681728,-884.32,0.0001041,2]
[356332299,1742286681738,-2187.92,0.0001041,2]
[356332300,1742286681747,-3166.23,0.0001041,2]
[356332301,1742286681758,-500.0,0.0001041,2]
[356332302,1742286681768,-215.41292721,0.0001041,2]
[356332303,1742286681778,-846.0,0.0001041,2]
[356332304,1742286681787,-500.0,0.0001041,2]
[356332305,1742286681797,-500.0,0.0001041,2]
[356332306,1742286681807,-500.0,0.0001041,2]
[356332307,1742286681816,-296.04568017,0.0001041,2]
[356332308,1742286681826,-847.69,0.0001041,2]
[356332309,1742286681836,-1476.4,0.0001041,2]
[356332310,1742286681845,-1068.47,0.0001041,2]
[356332311,1742286681855,-507.32999311,0.0001041,2]
[356332312,1742286681864,-500.0,0.0001041,2]
[356332313,1742286681874,-2552.77,0.0001041,2]
[356332314,1742286681884,-8078.39,0.0001041,2]
[356332315,1742286681893,-574.26,0.0001041,2]
[356332316,1742286681903,-3125.56,0.0001041,2]
[356332317,1742286681912,-500.0,0.0001041,2]
[356332318,1742286681922,-500.0,0.0001041,2]
[356332319,1742286681932,-500.0,0.0001041,2]
[356332320,1742286681941,-500.0,0.0001041,2]
[356332321,1742286681951,-2010.1,0.0001041,2]
[356332322,1742286681961,-890.39,0.0001041,2]
[356332323,1742286681971,-500.0,0.0001041,2]
[356332324,1742286681981,-500.0,0.0001041,2]
[356332325,1742286681991,-500.0,0.0001041,2]
[356332326,1742286682000,-602.83,0.0001041,2]
[356332327,1742286682010,-500.0,0.0001041,2]
[356332328,1742286682020,-500.0,0.0001041,2]
[356332329,1742286682031,-500.0,0.0001041,2]
[356332330,1742286682040,-500.0,0.0001041,2]
[356332331,1742286682050,-1007.4,0.0001041,2]
[356332332,1742286682060,-500.0,0.0001041,2]
[356332333,1742286682069,-500.0,0.0001041,2]
[356332334,1742286682079,-517.67069315,0.0001041,2]
[356332335,1742286682089,-4662.69,0.0001041,2]
[356332336,1742286682098,-500.0,0.0001041,2]
[356332337,1742286682108,-500.0,0.0001041,2]
[356332338,1742286682122,-1611.39,0.0001041,2]
[356332339,1742286682131,-500.0,0.0001041,2]
[356332340,1742286682141,-642.65,0.0001041,2]
[356332341,1742286682151,-500.0,0.0001041,2]
[356332342,1742286682163,-628.53,0.0001041,2]
[356332343,1742286682174,-500.0,0.0001041,2]
[356332344,1742286682183,-1500.8,0.0001041,2]
[356332345,1742286682194,-500.0,0.0001041,2]
[356332346,1742286682204,-778.05,0.0001041,2]
[356332347,1742286682213,-500.0,0.0001041,2]
[356332348,1742286682223,-663.29,0.0001041,2]
[356332349,1742286682232,-690.44,0.0001041,2]
[356332350,1742286682242,-500.0,0.0001041,2]
[356332351,1742286682251,-500.0,0.0001041,2]
[356332352,1742286682262,-151.99437,0.00010479,2]
[356332353,1742286682272,-150.0,0.00010555,2]
[356332354,1742286682282,-150.0,0.00010555,2]
[356332355,1742286682292,-835.11200367,0.00010589,2]
[356332356,1742286682302,-823.0,0.00010645,2]
[356332357,1742286682312,-150.0,0.00010679,2]
[356332358,1742286682322,-150.0,0.00010679,2]
[356332359,1742286682332,-239.70430949,0.00010682,2]
[356332360,1742286682353,-500.0,0.00010684,2]
[356332361,1742286682363,-502.89,0.00010684,2]
[356332362,1742286682372,-500.0,0.00010684,2]
[356332363,1742286682383,-500.0,0.00010684,2]
[356332364,1742286682392,-500.0,0.00010684,2]
[356332365,1742286682402,-500.0,0.00010684,2]
[356332366,1742286682411,-500.0,0.00010684,2]
[356332367,1742286682421,-500.0,0.00010684,2]
[356332368,1742286682431,-500.0,0.00010684,2]
[356332369,1742286682441,-500.0,0.00010684,2]
[356332370,1742286682451,-500.0,0.00010684,2]
[356332371,1742286682461,-500.0,0.00010684,2]
[356332372,1742286682471,-500.0,0.00010684,2]
[356332373,1742286682480,-500.0,0.00010684,2]
[356332374,1742286682490,-500.0,0.00010684,2]
[356332375,1742286682597,-500.0,0.00010684,2]
[356332376,1742286682607,-500.0,0.00010684,2]
[356332377,1742286682616,-500.0,0.00010684,2]
[356332378,1742286682626,-500.0,0.00010684,2]
[356332379,1742286682636,-500.0,0.00010684,2]
[356332380,1742286682645,-500.0,0.00010684,2]
[356332381,1742286682654,-500.0,0.00010684,2]
[356332382,1742286682664,-500.0,0.00010684,2]
[356332383,1742286682674,-507.37133855,0.00010684,2]
[356332384,1742286682683,-500.0,0.00010684,2]
[356332385,1742286682692,-500.0,0.00010684,2]
[356332386,1742286682701,-500.0,0.00010684,2]
[356332387,1742286682710,-500.0,0.00010684,2]
[356332388,1742286682720,-622.72,0.00010684,2]
[356332389,1742286682729,-917.74,0.00010684,2]
[356332390,1742286682739,-515.99958596,0.00010684,2]
[356332391,1742286682748,-500.0,0.00010684,2]
[356332392,1742286682758,-500.0,0.00010684,2]
[356332393,1742286682767,-500.0,0.00010684,2]
[356332394,1742286682776,-500.0,0.00010684,2]
[356332395,1742286682786,-500.0,0.00010684,2]
[356332396,1742286682796,-514.84915332,0.00010684,2]
[356332397,1742286682806,-1028.0,0.00010684,2]
[356332398,1742286682815,-500.0,0.00010684,2]
[356332399,1742286682825,-316.01193013,0.00010684,2]
[356332400,1742286682835,-500.0,0.00010684,2]
[356332401,1742286682844,-500.0,0.00010684,2]
[356332402,1742286682853,-1921.6,0.00010684,2]
[356332403,1742286682863,-500.0,0.00010684,2]
[356332404,1742286682872,-653.08,0.00010684,2]
[356332405,1742286682881,-151.76955698,0.00010684,2]
[356332406,1742286682891,-225.71051369,0.00010684,2]
[356332407,1742286682901,-2008.81,0.00010684,2]
[356332408,1742286682911,-500.0,0.00010684,2]
[356332409,1742286682921,-2178.78,0.00010684,2]
[356332410,1742286682931,-500.0,0.00010684,2]
[356332411,1742286682941,-2521.8,0.00010684,2]
[356332412,1742286682951,-500.0,0.00010684,2]
[356332413,1742286682961,-529.85,0.00010684,2]
[356332414,1742286682971,-500.0,0.00010684,2]
[356332415,1742286682982,-516.08,0.00010684,2]
[356332416,1742286682991,-500.0,0.00010684,2]
[356332417,1742286683001,-500.0,0.00010684,2]
[356332418,1742286683011,-500.0,0.00010684,2]
[356332419,1742286683020,-500.0,0.00010684,2]
[356332420,1742286683031,-922.48,0.00010684,2]
[356332421,1742286683040,-680.36,0.00010684,2]
[356332422,1742286683049,-500.0,0.00010684,2]
[356332423,1742286683060,-682.75,0.00010684,2]
[356332424,1742286683070,-610.02,0.00010684,2]
[356332425,1742286683079,-500.0,0.00010684,2]
[356332426,1742286683089,-674.0,0.00010684,2]
[356332427,1742286683099,-2151.35,0.00010684,2]
[356332428,1742286683109,-1105.69,0.00010684,2]
[356332429,1742286683119,-500.0,0.00010684,2]
[356332430,1742286683131,-500.0,0.00010684,2]
[356332431,1742286683140,-1281.22,0.00010684,2]
[356332432,1742286683150,-500.0,0.00010684,2]
[356332433,1742286683160,-500.0,0.00010684,2]
[356332434,1742286683171,-500.0,0.00010684,2]
[356332435,1742286683180,-183.81993088,0.00010684,2]
[356332436,1742286683190,-778.89,0.00010684,2]
[356332437,1742286683201,-907.84,0.00010684,2]
[356332438,1742286683210,-500.0,0.00010684,2]
[356332439,1742286683220,-14498.22,0.00010684,2]
[356332440,1742286683231,-763.96,0.00010684,2]
[356332441,1742286683240,-500.0,0.00010684,2]
[356332442,1742286683250,-2492.38,0.00010684,2]
[356332443,1742286683260,-500.0,0.00010684,2]
[356332444,1742286683269,-885.14,0.00010684,2]
[356332445,1742286683279,-626.66,0.00010684,2]
[356332446,1742286683289,-500.0,0.00010684,2]
[356332447,1742286683298,-1236.95,0.00010684,2]
[356332448,1742286683308,-262.17336972,0.00010684,2]
[356332449,1742286683318,-500.0,0.00010684,2]
[356332450,1742286683328,-1394.36,0.00010684,2]
[356332451,1742286683339,-667.87,0.00010684,2]
[356332452,1742286683348,-500.0,0.00010684,2]
[356332453,1742286683357,-500.0,0.00010684,2]
[356332454,1742286683367,-500.0,0.00010684,2]
[356332455,1742286683377,-276.39423274,0.00010684,2]
[356332456,1742286683387,-1394.43,0.00010684,2]
[356332457,1742286683396,-5190.96,0.00010684,2]
[356332458,1742286683405,-500.0,0.00010684,2]
[356332459,1742286683415,-500.0,0.00010684,2]
[356332460,1742286683425,-1898.09,0.00010684,2]
[356332461,1742286683435,-500.0,0.00010684,2]
[356332462,1742286683446,-505.21,0.00010684,2]
[356332463,1742286683456,-604.25,0.00010684,2]
[356332464,1742286683466,-500.0,0.00010684,2]
[356332465,1742286683477,-687.55,0.00010684,2]
[356332466,1742286683487,-1875.08,0.00010684,2]
[356332467,1742286683496,-517.9,0.00010684,2]
[356332468,1742286683506,-6229.78,0.00010684,2]
[356332469,1742286683515,-641.6819458,0.00010684,2]
[356332470,1742286683526,-500.0,0.00010684,2]
[356332471,1742286683535,-500.0,0.00010684,2]
[356332472,1742286683545,-10748.02,0.00010684,2]
[356332473,1742286683555,-4015.9,0.00010684,2]
[356332474,1742286683565,-7811.31,0.00010684,2]
[356332475,1742286683575,-1219.17,0.00010684,2]
[356332476,1742286683584,-500.0,0.00010684,2]
[356332477,1742286683594,-500.0,0.00010684,2]
[356332478,1742286683605,-5865.91,0.00010684,2]
[356332479,1742286683615,-1567.61,0.00010684,2]
[356332480,1742286683624,-2101.67,0.00010684,2]
[356332481,1742286683634,-500.0,0.00010684,2]
[356332482,1742286683644,-1103.93,0.00010684,2]
[356332483,1742286683654,-500.0,0.00010684,2]
[356332484,1742286683664,-500.0,0.00010684,2]
[356332485,1742286683673,-500.0,0.00010684,2]
[356332486,1742286683683,-615.81503996,0.00010684,2]
[356332487,1742286683693,-1658.96,0.00010684,2]
[356332488,1742286683703,-500.0,0.00010684,2]
[356332489,1742286683713,-98083.34,0.00010684,2]
[356332490,1742286683723,-500.0,0.00010684,2]
[356332491,1742286683732,-656.05,0.00010684,2]
[356332492,1742286683742,-500.0,0.00010684,2]
[356332493,1742286683752,-500.0,0.00010684,2]
[356332494,1742286683762,-2562.21,0.00010684,2]
[356332495,1742286683771,-3833.09,0.00010684,2]
[356332496,1742286683781,-500.0,0.00010684,2]
[356332497,1742286683791,-1785.76,0.00010684,2]
[356332498,1742286683800,-1141.65,0.00010684,2]
[356332499,1742286683810,-500.0,0.00010684,2]
[356332500,1742286683820,-6740.53,0.00010684,2]
[356332501,1742286683830,-1590.13,0.00010684,2]
[356332502,1742286683840,-700.85,0.00010684,2]
[356332503,1742286683850,-9675.79,0.00010684,2]
[356332504,1742286683860,-500.0,0.00010684,2]
[356332505,1742286683871,-884.32,0.00010684,2]
[356332506,1742286683881,-2187.92,0.00010684,2]
[356332507,1742286683891,-3166.23,0.00010684,2]
[356332508,1742286683901,-500.0,0.00010684,2]
[356332509,1742286683911,-846.0,0.00010684,2]
[356332510,1742286683921,-500.0,0.00010684,2]
[356332511,1742286683931,-500.0,0.00010684,2]
[356332512,1742286683940,-500.0,0.00010684,2]
[356332513,1742286683950,-847.69,0.00010684,2]
[356332514,1742286683960,-1476.4,0.00010684,2]
[356332515,1742286683970,-1068.47,0.00010684,2]
[356332516,1742286683980,-500.0,0.00010684,2]
[356332517,1742286683990,-2552.77,0.00010684,2]
[356332518,1742286683999,-8078.39,0.00010684,2]
[356332519,1742286684009,-574.26,0.00010684,2]
[356332520,1742286684019,-3125.56,0.00010684,2]
[356332521,1742286684029,-500.0,0.00010684,2]
[356332522,1742286684039,-500.0,0.00010684,2]
[356332523,1742286684048,-504.30400038,0.00010684,2]
[356332524,1742286684058,-500.0,0.00010684,2]
[356332525,1742286684068,-2010.1,0.00010684,2]
[356332526,1742286684078,-500.0,0.00010684,2]
[356332527,1742286684181,-890.39,0.00010684,2]
[356332528,1742286684193,-500.0,0.00010684,2]
[356332529,1742286684203,-503.86968968,0.00010684,2]
[356332530,1742286684213,-602.83,0.00010684,2]
[356332531,1742286684222,-500.0,0.00010684,2]
[356332532,1742286684232,-500.0,0.00010684,2]
[356332533,1742286684242,-512.8655379,0.00010684,2]
[356332534,1742286684252,-513.88431923,0.00010684,2]
[356332535,1742286684262,-1007.4,0.00010684,2]
[356332536,1742286684271,-500.0,0.00010684,2]
[356332537,1742286684281,-500.0,0.00010684,2]
[356332538,1742286684291,-4662.69,0.00010684,2]
[356332539,1742286684300,-500.0,0.00010684,2]
[356332540,1742286684310,-509.50484983,0.00010684,2]
[356332541,1742286684319,-1611.39,0.00010684,2]
[356332542,1742286684329,-500.0,0.00010684,2]
[356332543,1742286684338,-642.65,0.00010684,2]
[356332544,1742286684348,-500.0,0.00010684,2]
[356332545,1742286684358,-628.53,0.00010684,2]
[356332546,1742286684367,-500.0,0.00010684,2]
[356332547,1742286684376,-1500.8,0.00010684,2]
[356332548,1742286684386,-512.49220525,0.00010684,2]
[356332549,1742286684396,-778.05,0.00010684,2]
[356332550,1742286684405,-663.29,0.00010684,2]
[356332551,1742286684414,-690.44,0.00010684,2]
[356332552,1742286684423,-500.0,0.00010684,2]
[356332553,1742286684433,-500.0,0.00010684,2]
[356332554,1742286684442,-500.0,0.00010685,2]
[356332555,1742286684451,-465.00013357,0.00010734,2]
[356332556,1742286684461,-500.0,0.0001082,2]
[356332557,1742286684471,-835.11200367,0.00010905,2]